[Event "Late-Titled-Tuesday-Blitz-September-05-2023"]
[Site "Chess.com"]
[Date "2023.09.05"]
[Round "6"]
[White "jup1978"]
[Black "kingofthenil"]
[Result "0-1"]
[WhiteElo "2541"]
[BlackElo "2766"]
[TimeControl "180+1"]
[EndTime "15:08:43 PDT"]
[Termination "kingofthenil won by resignation"]

1. d4 {[%clk 0:03:00.9]} 1... Nf6 {[%clk 0:02:54.6]} 2. Nf3 {[%clk 0:03:01]}
2... g6 {[%clk 0:02:55]} 3. g3 {[%clk 0:02:59.9]} 3... Bg7 {[%clk 0:02:55.9]} 4.
Bg2 {[%clk 0:03:00.6]} 4... O-O {[%clk 0:02:56.4]} 5. O-O {[%clk 0:03:01.3]}
5... c5 {[%clk 0:02:51.1]} 6. Nc3 {[%clk 0:02:59]} 6... cxd4 {[%clk 0:02:49.6]}
7. Nxd4 {[%clk 0:02:59.9]} 7... d5 {[%clk 0:02:49.2]} 8. Nb3 {[%clk 0:02:51]}
8... e6 {[%clk 0:02:48.6]} 9. e4 {[%clk 0:02:47.4]} 9... dxe4 {[%clk 0:02:48.2]}
10. Nxe4 {[%clk 0:02:48.3]} 10... Nxe4 {[%clk 0:02:43.8]} 11. Bxe4 {[%clk
0:02:46.7]} 11... Qe7 {[%clk 0:02:44.1]} 12. Qe2 {[%clk 0:02:41]} 12... Rd8
{[%clk 0:02:28.4]} 13. c3 {[%clk 0:02:38.9]} 13... Na6 {[%clk 0:02:18.6]} 14.
Be3 {[%clk 0:02:31.5]} 14... Nc7 {[%clk 0:02:18.2]} 15. Bc5 {[%clk 0:02:18.7]}
15... Qe8 {[%clk 0:02:17.5]} 16. Rad1 {[%clk 0:02:13.6]} 16... Nd5 {[%clk
0:01:57.3]} 17. Bxd5 {[%clk 0:02:12.3]} 17... exd5 {[%clk 0:01:55.5]} 18. Qxe8+
{[%clk 0:02:13.2]} 18... Rxe8 {[%clk 0:01:55.8]} 19. Rxd5 {[%clk 0:02:13.2]}
19... Bh3 {[%clk 0:01:48.2]} 20. Rfd1 {[%clk 0:02:09.1]} 20... Bg4 {[%clk
0:01:46.4]} 21. Rf1 {[%clk 0:01:50.5]} 21... Re2 {[%clk 0:01:43.3]} 22. Rd2
{[%clk 0:01:38.2]} 22... Rae8 {[%clk 0:01:41.5]} 23. Be3 {[%clk 0:01:36]} 23...
Rxd2 {[%clk 0:01:23.2]} 24. Nxd2 {[%clk 0:01:35.6]} 24... a5 {[%clk 0:01:17.9]}
25. Kg2 {[%clk 0:01:34.8]} 25... a4 {[%clk 0:01:17.3]} 26. a3 {[%clk 0:01:34.9]}
26... Rd8 {[%clk 0:01:15.3]} 27. Re1 {[%clk 0:01:33]} 27... h5 {[%clk
0:01:12.4]} 28. h3 {[%clk 0:01:32.5]} 28... Bf5 {[%clk 0:01:11.3]} 29. Nf3
{[%clk 0:01:22.1]} 29... Be4 {[%clk 0:01:09.9]} 30. Bg5 {[%clk 0:01:22]} 30...
Re8 {[%clk 0:01:05.6]} 31. Re3 {[%clk 0:01:22]} 31... f6 {[%clk 0:01:02.8]} 32.
Bf4 {[%clk 0:01:21.3]} 32... g5 {[%clk 0:01:02.8]} 33. Bd6 {[%clk 0:01:05.1]}
33... g4 {[%clk 0:01:00.4]} 34. hxg4 {[%clk 0:01:05.2]} 34... hxg4 {[%clk
0:01:01.3]} 35. Rxe4 {[%clk 0:01:04.8]} 35... Rxe4 {[%clk 0:01:01.1]} 36. Nd4
{[%clk 0:01:04.8]} 36... Kf7 {[%clk 0:00:57.3]} 37. Bf4 {[%clk 0:01:03.7]} 37...
Kg6 {[%clk 0:00:56.7]} 38. Kf1 {[%clk 0:00:58.6]} 38... f5 {[%clk 0:00:56.6]}
39. Be3 {[%clk 0:00:55.9]} 39... Bxd4 {[%clk 0:00:53.2]} 40. cxd4 {[%clk
0:00:54.4]} 40... Kf6 {[%clk 0:00:53.1]} 41. Ke2 {[%clk 0:00:54.9]} 41... Ke6
{[%clk 0:00:53.3]} 42. Kd3 {[%clk 0:00:55.5]} 42... Kd5 {[%clk 0:00:53.5]} 43.
Kc3 {[%clk 0:00:55.9]} 43... f4 {[%clk 0:00:49.3]} 44. Bxf4 {[%clk 0:00:50.7]}
44... Rxd4 {[%clk 0:00:48.7]} 45. Be3 {[%clk 0:00:50.9]} 45... Rc4+ {[%clk
0:00:47.2]} 46. Kd3 {[%clk 0:00:50.6]} 46... b5 {[%clk 0:00:48.1]} 47. Bf4
{[%clk 0:00:48.7]} 47... b4 {[%clk 0:00:45.1]} 48. axb4 {[%clk 0:00:45.8]} 48...
Rxb4 {[%clk 0:00:46]} 49. Kc3 {[%clk 0:00:45.6]} 49... Rb3+ {[%clk 0:00:46.9]}
50. Kc2 {[%clk 0:00:45.9]} 50... Ke4 {[%clk 0:00:47.7]} 51. Bd6 {[%clk
0:00:38.9]} 51... Kf3 {[%clk 0:00:45.3]} 52. Bc5 {[%clk 0:00:38.4]} 52... Rb5
{[%clk 0:00:45.3]} 53. Be3 {[%clk 0:00:37.6]} 53... Re5 {[%clk 0:00:44.9]} 54.
Bd4 {[%clk 0:00:37.2]} 54... Re2+ {[%clk 0:00:28.8]} 55. Kc3 {[%clk 0:00:37.1]}
55... Rxf2 {[%clk 0:00:29.7]} 56. Kb4 {[%clk 0:00:37.6]} 56... Rd2 {[%clk
0:00:24.5]} 57. Bc3 {[%clk 0:00:36]} 57... Rd7 {[%clk 0:00:16.4]} 58. Kxa4
{[%clk 0:00:36.1]} 58... Kxg3 {[%clk 0:00:17.3]} 59. Be5+ {[%clk 0:00:36.2]}
59... Kf3 {[%clk 0:00:17]} 60. b4 {[%clk 0:00:36.5]} 60... Rd5 {[%clk
0:00:16.1]} 61. Bc7 {[%clk 0:00:35.6]} 61... Rd7 {[%clk 0:00:14.8]} 62. Be5
{[%clk 0:00:35]} 62... Re7 {[%clk 0:00:13.4]} 63. Bd6 {[%clk 0:00:34.6]} 63...
Re6 {[%clk 0:00:13]} 64. Bc7 {[%clk 0:00:34.7]} 64... g3 {[%clk 0:00:09.4]} 65.
b5 {[%clk 0:00:32]} 65... g2 {[%clk 0:00:06.9]} 66. Bh2 {[%clk 0:00:32.4]} 66...
Re1 {[%clk 0:00:04.5]} 67. b6 {[%clk 0:00:27.6]} 67... Rh1 {[%clk 0:00:04.2]}
68. b7 {[%clk 0:00:25.4]} 68... Rb1 {[%clk 0:00:04.7]} 69. b8=Q {[%clk
0:00:18.5]} 69... Rxb8 {[%clk 0:00:04.7]} 70. Bxb8 {[%clk 0:00:19.1]} 70... g1=Q
{[%clk 0:00:04.3]} 71. Ba7 {[%clk 0:00:20]} 71... Qd1+ {[%clk 0:00:04.3]} 72.
Kb5 {[%clk 0:00:20.9]} 72... Ke4 {[%clk 0:00:04.3]} 73. Ka6 {[%clk 0:00:21.5]}
73... Qd5 {[%clk 0:00:04.1]} 74. Bb6 {[%clk 0:00:21.8]} 74... Kd3 {[%clk
0:00:05]} 75. Ba5 {[%clk 0:00:21.7]} 75... Kc4 {[%clk 0:00:05.9]} 76. Bb6 {[%clk
0:00:22.6]} 76... Qc6 {[%clk 0:00:05.6]} 77. Ka7 {[%clk 0:00:22.2]} 77... Kb5
{[%clk 0:00:06.4]} 78. Kb8 {[%clk 0:00:21.6]} 78... Qxb6+ {[%clk 0:00:05.8]} 79.
Ka8 {[%clk 0:00:22.5]} 79... Qd6 {[%clk 0:00:04.5]} 80. Ka7 {[%clk 0:00:19.6]}
80... Qe7+ {[%clk 0:00:05.4]} 81. Ka8 {[%clk 0:00:20.5]} 81... Kb6 {[%clk
0:00:06.3]} 82. Kb8 {[%clk 0:00:20.4]} 82... Qd6+ {[%clk 0:00:05.9]} 0-1

[Event "Late-Titled-Tuesday-Blitz-September-05-2023"]
[Site "Chess.com"]
[Date "2023.09.05"]
[Round "6"]
[White "ninguno46"]
[Black "Dr_crypt"]
[Result "1-0"]
[WhiteElo "2609"]
[BlackElo "2385"]
[TimeControl "180+1"]
[EndTime "15:08:48 PDT"]
[Termination "ninguno46 won on time"]

1. c4 {[%clk 0:02:58.2]} 1... e6 {[%clk 0:02:59.2]} 2. Nf3 {[%clk 0:02:56.8]}
2... d5 {[%clk 0:02:58.8]} 3. e3 {[%clk 0:02:57]} 3... a6 {[%clk 0:02:58.4]} 4.
b3 {[%clk 0:02:56.6]} 4... Nf6 {[%clk 0:02:57.1]} 5. Bb2 {[%clk 0:02:56.6]} 5...
Be7 {[%clk 0:02:57.4]} 6. Qc2 {[%clk 0:02:55.2]} 6... O-O {[%clk 0:02:57]} 7. g4
{[%clk 0:02:50.2]} 7... c5 {[%clk 0:02:38.9]} 8. g5 {[%clk 0:02:49.6]} 8... Nfd7
{[%clk 0:02:36.4]} 9. h4 {[%clk 0:02:45.6]} 9... Nc6 {[%clk 0:02:36.6]} 10. a3
{[%clk 0:02:40]} 10... Re8 {[%clk 0:02:26.4]} 11. Bd3 {[%clk 0:02:31.9]} 11...
Nf8 {[%clk 0:02:25.1]} 12. Nc3 {[%clk 0:02:19.9]} 12... d4 {[%clk 0:02:22.8]}
13. Ne4 {[%clk 0:02:18.7]} 13... e5 {[%clk 0:02:21.4]} 14. Ng3 {[%clk
0:02:17.9]} 14... Bg4 {[%clk 0:02:11.4]} 15. Be4 {[%clk 0:02:16.9]} 15... Qd7
{[%clk 0:02:05.9]} 16. Bxc6 {[%clk 0:01:54]} 16... Qxc6 {[%clk 0:02:05.2]} 17.
Nxe5 {[%clk 0:01:54.1]} 17... Qc8 {[%clk 0:02:03.6]} 18. Nxg4 {[%clk 0:01:53.2]}
18... Qxg4 {[%clk 0:02:04.2]} 19. Qf5 {[%clk 0:01:49.8]} 19... Qxf5 {[%clk
0:01:48.8]} 20. Nxf5 {[%clk 0:01:48.9]} 20... Ne6 {[%clk 0:01:39.6]} 21. O-O-O
{[%clk 0:01:39.6]} 21... Rad8 {[%clk 0:01:37.8]} 22. Rhe1 {[%clk 0:01:25.7]}
22... Bf8 {[%clk 0:01:28.7]} 23. exd4 {[%clk 0:01:23.2]} 23... cxd4 {[%clk
0:01:24.5]} 24. d3 {[%clk 0:01:15.4]} 24... g6 {[%clk 0:01:19.7]} 25. Ng3 {[%clk
0:01:11.2]} 25... h6 {[%clk 0:01:17.2]} 26. Ne4 {[%clk 0:01:08.9]} 26... Bg7
{[%clk 0:01:13]} 27. Kc2 {[%clk 0:01:06]} 27... h5 {[%clk 0:01:09.6]} 28. b4
{[%clk 0:01:01.7]} 28... Kf8 {[%clk 0:01:08.2]} 29. a4 {[%clk 0:00:58.9]} 29...
Ke7 {[%clk 0:01:04.8]} 30. b5 {[%clk 0:00:58.6]} 30... Kd7 {[%clk 0:01:03.3]}
31. Ba3 {[%clk 0:00:52.2]} 31... axb5 {[%clk 0:00:45.2]} 32. axb5 {[%clk
0:00:50.8]} 32... Ra8 {[%clk 0:00:44.9]} 33. Kb3 {[%clk 0:00:48.8]} 33... b6
{[%clk 0:00:38.1]} 34. Bb4 {[%clk 0:00:46.6]} 34... Nf4 {[%clk 0:00:33.4]} 35.
Rh1 {[%clk 0:00:23.3]} 35... Be5 {[%clk 0:00:28.9]} 36. c5 {[%clk 0:00:22.1]}
36... bxc5 {[%clk 0:00:20.8]} 37. Nxc5+ {[%clk 0:00:21.6]} 37... Kc7 {[%clk
0:00:21.1]} 38. Bd2 {[%clk 0:00:20.4]} 38... Kb6 {[%clk 0:00:19.9]} 39. Nd7+
{[%clk 0:00:16.1]} 39... Kxb5 {[%clk 0:00:17]} 40. Nxe5 {[%clk 0:00:16.3]} 40...
Rxe5 {[%clk 0:00:17.2]} 41. Bxf4 {[%clk 0:00:16.3]} 41... Re2 {[%clk 0:00:17.4]}
42. Rd2 {[%clk 0:00:15.7]} 42... Rae8 {[%clk 0:00:13.3]} 43. Rb1 {[%clk
0:00:13.7]} 43... Rxd2 {[%clk 0:00:13]} 44. Bxd2 {[%clk 0:00:13.8]} 44... Re2
{[%clk 0:00:13.9]} 45. Be1 {[%clk 0:00:13]} 45... Kc5 {[%clk 0:00:12.4]} 46.
Rc1+ {[%clk 0:00:12]} 46... Kd5 {[%clk 0:00:12.8]} 47. f3 {[%clk 0:00:11.7]}
47... Re3 {[%clk 0:00:11.6]} 48. Kc2 {[%clk 0:00:11.2]} 48... Rxf3 {[%clk
0:00:11.9]} 49. Kd2 {[%clk 0:00:11.6]} 49... Rh3 {[%clk 0:00:11.4]} 50. Ke2
{[%clk 0:00:11.5]} 50... Rh2+ {[%clk 0:00:11.3]} 51. Bf2 {[%clk 0:00:12.1]}
51... Ke5 {[%clk 0:00:09.3]} 52. Kf3 {[%clk 0:00:12.6]} 52... Rh3+ {[%clk
0:00:09.6]} 53. Ke2 {[%clk 0:00:11.5]} 53... Kf4 {[%clk 0:00:09.9]} 54. Rc4
{[%clk 0:00:10.7]} 54... Rh2 {[%clk 0:00:07.2]} 55. Rxd4+ {[%clk 0:00:11]} 55...
Kf5 {[%clk 0:00:07.8]} 56. Re4 {[%clk 0:00:10.8]} 56... f6 {[%clk 0:00:07.8]}
57. gxf6 {[%clk 0:00:09.9]} 57... Kxf6 {[%clk 0:00:08.7]} 58. Kf3 {[%clk
0:00:10.2]} 58... g5 {[%clk 0:00:09.2]} 59. hxg5+ {[%clk 0:00:09.4]} 59... Kxg5
{[%clk 0:00:09.5]} 60. Re5+ {[%clk 0:00:09.2]} 60... Kg6 {[%clk 0:00:09.4]} 61.
d4 {[%clk 0:00:09.1]} 61... Rh3+ {[%clk 0:00:09.5]} 62. Kg2 {[%clk 0:00:08.1]}
62... Rd3 {[%clk 0:00:09.5]} 63. d5 {[%clk 0:00:08.2]} 63... Rd2 {[%clk
0:00:08.5]} 64. Kf3 {[%clk 0:00:08]} 64... Rd3+ {[%clk 0:00:08.6]} 65. Be3
{[%clk 0:00:08.3]} 65... h4 {[%clk 0:00:09]} 66. Ke4 {[%clk 0:00:08.8]} 66...
Rd1 {[%clk 0:00:09]} 67. Rg5+ {[%clk 0:00:08.8]} 67... Kf6 {[%clk 0:00:09]} 68.
Rg2 {[%clk 0:00:09.7]} 68... h3 {[%clk 0:00:08.9]} 69. Rh2 {[%clk 0:00:10]}
69... Rh1 {[%clk 0:00:02.7]} 70. Rxh1 {[%clk 0:00:09.8]} 1-0

[Event "Late-Titled-Tuesday-Blitz-September-05-2023"]
[Site "Chess.com"]
[Date "2023.09.05"]
[Round "6"]
[White "Sinquefield"]
[Black "PepeCuenca"]
[Result "0-1"]
[WhiteElo "2464"]
[BlackElo "2666"]
[TimeControl "180+1"]
[EndTime "15:08:48 PDT"]
[Termination "PepeCuenca won by checkmate"]

1. d4 {[%clk 0:02:46.3]} 1... d6 {[%clk 0:02:50.7]} 2. Nf3 {[%clk 0:02:45.8]}
2... Nf6 {[%clk 0:02:50.3]} 3. Bg5 {[%clk 0:02:45.8]} 3... Nbd7 {[%clk
0:02:45.8]} 4. Nbd2 {[%clk 0:02:44.9]} 4... e5 {[%clk 0:02:45.6]} 5. e3 {[%clk
0:02:43.3]} 5... Be7 {[%clk 0:02:45.3]} 6. Bd3 {[%clk 0:02:37.1]} 6... O-O
{[%clk 0:02:43.4]} 7. c3 {[%clk 0:02:35.6]} 7... h6 {[%clk 0:02:20.7]} 8. Bh4
{[%clk 0:02:27.4]} 8... Re8 {[%clk 0:02:18.2]} 9. e4 {[%clk 0:02:19.1]} 9... c6
{[%clk 0:02:12.5]} 10. O-O {[%clk 0:02:15.4]} 10... Qc7 {[%clk 0:02:12.4]} 11.
Re1 {[%clk 0:02:14.2]} 11... Nf8 {[%clk 0:02:12.3]} 12. Bg3 {[%clk 0:02:03.9]}
12... Ng6 {[%clk 0:02:05]} 13. c4 {[%clk 0:02:00.4]} 13... Nh5 {[%clk
0:01:58.5]} 14. Nf1 {[%clk 0:01:56.8]} 14... Nhf4 {[%clk 0:01:55.5]} 15. Rc1
{[%clk 0:01:52.9]} 15... c5 {[%clk 0:01:54.3]} 16. dxe5 {[%clk 0:01:46.2]} 16...
dxe5 {[%clk 0:01:53.7]} 17. Ne3 {[%clk 0:01:46.7]} 17... Be6 {[%clk 0:01:35.7]}
18. Nd5 {[%clk 0:01:45.7]} 18... Bxd5 {[%clk 0:01:35.9]} 19. exd5 {[%clk
0:01:31.8]} 19... Bd6 {[%clk 0:01:35.9]} 20. Bb1 {[%clk 0:01:25.1]} 20... a6
{[%clk 0:01:31.6]} 21. Nd2 {[%clk 0:01:23.4]} 21... b5 {[%clk 0:01:26.4]} 22. b3
{[%clk 0:01:11.8]} 22... b4 {[%clk 0:01:16]} 23. Qc2 {[%clk 0:01:05.8]} 23...
Nf8 {[%clk 0:01:07.2]} 24. Bxf4 {[%clk 0:01:04.3]} 24... exf4 {[%clk 0:01:06.8]}
25. Ne4 {[%clk 0:01:04.8]} 25... Be5 {[%clk 0:01:03.2]} 26. Rcd1 {[%clk
0:01:04.6]} 26... Rad8 {[%clk 0:01:00.4]} 27. Nd2 {[%clk 0:00:52.2]} 27... Bd4
{[%clk 0:00:57]} 28. Nf3 {[%clk 0:00:52.1]} 28... Bc3 {[%clk 0:00:56.1]} 29.
Rxe8 {[%clk 0:00:49.1]} 29... Rxe8 {[%clk 0:00:56.8]} 30. h3 {[%clk 0:00:47.6]}
30... Qd6 {[%clk 0:00:54.7]} 31. a3 {[%clk 0:00:39.2]} 31... a5 {[%clk
0:00:53.3]} 32. axb4 {[%clk 0:00:38.9]} 32... axb4 {[%clk 0:00:54]} 33. Nh4
{[%clk 0:00:31.5]} 33... g6 {[%clk 0:00:53]} 34. Nf3 {[%clk 0:00:28.2]} 34...
Nd7 {[%clk 0:00:52.7]} 35. Qa2 {[%clk 0:00:26]} 35... Nf6 {[%clk 0:00:50.1]} 36.
Qa7 {[%clk 0:00:24.7]} 36... Re7 {[%clk 0:00:39.4]} 37. Qa8+ {[%clk 0:00:24.1]}
37... Kg7 {[%clk 0:00:39.2]} 38. Qc8 {[%clk 0:00:22.8]} 38... Rc7 {[%clk
0:00:37]} 39. Qb8 {[%clk 0:00:21.2]} 39... Nd7 {[%clk 0:00:33.6]} 40. Qd8 {[%clk
0:00:20.5]} 40... Bf6 {[%clk 0:00:33.7]} 41. Qe8 {[%clk 0:00:20.3]} 41... Rb7
{[%clk 0:00:30.9]} 42. Re1 {[%clk 0:00:19.6]} 42... Rb8 {[%clk 0:00:29.7]} 43.
Qe4 {[%clk 0:00:17.3]} 43... Ra8 {[%clk 0:00:29.2]} 44. h4 {[%clk 0:00:17.6]}
44... h5 {[%clk 0:00:28.3]} 45. Ng5 {[%clk 0:00:17.3]} 45... Qe5 {[%clk
0:00:23.4]} 46. Nf3 {[%clk 0:00:14]} 46... Qxe4 {[%clk 0:00:19.8]} 47. Bxe4
{[%clk 0:00:14.9]} 47... Ra2 {[%clk 0:00:15.9]} 48. d6 {[%clk 0:00:14.6]} 48...
Ra6 {[%clk 0:00:11.9]} 49. Rd1 {[%clk 0:00:14.4]} 49... Kf8 {[%clk 0:00:10.6]}
50. Bb7 {[%clk 0:00:13.7]} 50... Rb6 {[%clk 0:00:10.3]} 51. Bc8 {[%clk
0:00:14.1]} 51... Ke8 {[%clk 0:00:10.1]} 52. g3 {[%clk 0:00:09.2]} 52... fxg3
{[%clk 0:00:08.5]} 53. fxg3 {[%clk 0:00:10.1]} 53... Kd8 {[%clk 0:00:08.7]} 54.
Bxd7 {[%clk 0:00:10.3]} 54... Kxd7 {[%clk 0:00:08.9]} 55. Rd5 {[%clk 0:00:11.2]}
55... Rxd6 {[%clk 0:00:05]} 56. Rxc5 {[%clk 0:00:11.1]} 56... Rd3 {[%clk
0:00:05.7]} 57. Rd5+ {[%clk 0:00:11]} 57... Rxd5 {[%clk 0:00:05.8]} 58. cxd5
{[%clk 0:00:11.9]} 58... Kd6 {[%clk 0:00:06.6]} 59. Kf2 {[%clk 0:00:10.6]} 59...
Kxd5 {[%clk 0:00:07.1]} 60. Ke3 {[%clk 0:00:11.2]} 60... Be7 {[%clk 0:00:03.2]}
61. Kd3 {[%clk 0:00:11.4]} 61... Bd6 {[%clk 0:00:03.4]} 62. Ng5 {[%clk
0:00:11.3]} 62... Bxg3 {[%clk 0:00:02.6]} 63. Nxf7 {[%clk 0:00:11.1]} 63... Bxh4
{[%clk 0:00:03.2]} 64. Nh8 {[%clk 0:00:10.9]} 64... g5 {[%clk 0:00:03.2]} 65.
Ng6 {[%clk 0:00:11.8]} 65... Bg3 {[%clk 0:00:03.3]} 66. Ke3 {[%clk 0:00:11.7]}
66... Bd6 {[%clk 0:00:02.3]} 67. Nh8 {[%clk 0:00:10.8]} 67... Ke6 {[%clk
0:00:02.2]} 68. Ke4 {[%clk 0:00:09.9]} 68... Kf6 {[%clk 0:00:02.7]} 69. Kd5
{[%clk 0:00:09.6]} 69... h4 {[%clk 0:00:02.8]} 70. Kxd6 {[%clk 0:00:09.7]} 70...
h3 {[%clk 0:00:03.5]} 71. Kd7 {[%clk 0:00:09.5]} 71... h2 {[%clk 0:00:04]} 72.
Ke8 {[%clk 0:00:10.4]} 72... h1=Q {[%clk 0:00:04.5]} 73. Nf7 {[%clk 0:00:11.3]}
73... Qa8+ {[%clk 0:00:04.5]} 74. Nd8 {[%clk 0:00:11.2]} 74... g4 {[%clk
0:00:05]} 75. Kd7 {[%clk 0:00:11]} 75... Qxd8+ {[%clk 0:00:05.6]} 76. Kxd8
{[%clk 0:00:11.1]} 76... g3 {[%clk 0:00:06.5]} 77. Kc7 {[%clk 0:00:12]} 77... g2
{[%clk 0:00:07.4]} 78. Kb6 {[%clk 0:00:12.9]} 78... g1=Q+ {[%clk 0:00:08.3]} 79.
Ka5 {[%clk 0:00:13.8]} 79... Qd4 {[%clk 0:00:08.5]} 80. Ka4 {[%clk 0:00:14.3]}
80... Qc3 {[%clk 0:00:08.5]} 81. Kb5 {[%clk 0:00:14.3]} 81... Qxb3 {[%clk
0:00:09.2]} 82. Kc5 {[%clk 0:00:15.1]} 82... Qc3+ {[%clk 0:00:09.7]} 83. Kb5
{[%clk 0:00:15.5]} 83... b3 {[%clk 0:00:10.6]} 84. Ka4 {[%clk 0:00:16.3]} 84...
b2 {[%clk 0:00:10.7]} 85. Kb5 {[%clk 0:00:16.5]} 85... b1=Q+ {[%clk 0:00:11.3]}
86. Ka6 {[%clk 0:00:17.4]} 86... Qca1# {[%clk 0:00:11.9]} 0-1

[Event "Late-Titled-Tuesday-Blitz-September-05-2023"]
[Site "Chess.com"]
[Date "2023.09.05"]
[Round "7"]
[White "MKlose11"]
[Black "Francisco_Ferrari"]
[Result "1-0"]
[WhiteElo "2639"]
[BlackElo "2173"]
[TimeControl "180+1"]
[EndTime "15:12:01 PDT"]
[Termination "MKlose11 won by resignation"]

1. e4 {[%clk 0:03:00.9]} 1... c5 {[%clk 0:02:57.2]} 2. Nc3 {[%clk 0:03:00.5]}
2... a6 {[%clk 0:02:56.2]} 3. g3 {[%clk 0:03:01.4]} 3... b5 {[%clk 0:02:55.5]}
4. Bg2 {[%clk 0:03:02]} 4... Bb7 {[%clk 0:02:55.9]} 5. d3 {[%clk 0:03:02.5]}
5... e6 {[%clk 0:02:55.3]} 6. Nh3 {[%clk 0:03:02.6]} 6... Nc6 {[%clk 0:02:55.5]}
7. O-O {[%clk 0:03:02.8]} 7... Nf6 {[%clk 0:02:56]} 8. f4 {[%clk 0:03:01.9]}
8... d6 {[%clk 0:02:55]} 9. f5 {[%clk 0:02:57.4]} 9... Be7 {[%clk 0:02:54]} 10.
fxe6 {[%clk 0:02:57]} 10... fxe6 {[%clk 0:02:54.3]} 11. Ng5 {[%clk 0:02:44.1]}
11... Bc8 {[%clk 0:02:47.7]} 12. e5 {[%clk 0:02:33.9]} 12... Nd5 {[%clk
0:02:47.5]} 13. Nf7 {[%clk 0:02:30]} 1-0

[Event "Late-Titled-Tuesday-Blitz-September-05-2023"]
[Site "Chess.com"]
[Date "2023.09.05"]
[Round "7"]
[White "komogro"]
[Black "DenizSeyhanoglu1"]
[Result "1-0"]
[WhiteElo "2513"]
[BlackElo "2328"]
[TimeControl "180+1"]
[EndTime "15:12:21 PDT"]
[Termination "komogro won by resignation"]

1. e4 {[%clk 0:02:59.7]} 1... d5 {[%clk 0:02:59.7]} 2. exd5 {[%clk 0:02:59.7]}
2... Qxd5 {[%clk 0:02:59.5]} 3. Nc3 {[%clk 0:03:00.4]} 3... Qa5 {[%clk
0:02:59.6]} 4. Bc4 {[%clk 0:02:59.4]} 4... Nf6 {[%clk 0:02:59.7]} 5. Nge2 {[%clk
0:02:57.4]} 5... Bf5 {[%clk 0:02:59.2]} 6. d3 {[%clk 0:02:57.8]} 6... c6 {[%clk
0:02:55.7]} 7. O-O {[%clk 0:02:57.4]} 7... e6 {[%clk 0:02:54.2]} 8. Bf4 {[%clk
0:02:56.4]} 8... Qd8 {[%clk 0:02:52.5]} 9. h3 {[%clk 0:02:55.7]} 9... Bd6 {[%clk
0:02:52]} 10. Re1 {[%clk 0:02:53.3]} 10... O-O {[%clk 0:02:50.2]} 11. a3 {[%clk
0:02:51.5]} 11... Qc7 {[%clk 0:02:49.2]} 12. Bxd6 {[%clk 0:02:47.6]} 12... Qxd6
{[%clk 0:02:50.1]} 13. Ng3 {[%clk 0:02:48]} 13... Bg6 {[%clk 0:02:49.8]} 14.
Nge4 {[%clk 0:02:47.4]} 14... Nxe4 {[%clk 0:02:47.3]} 15. dxe4 {[%clk
0:02:47.1]} 15... Qc7 {[%clk 0:02:42.9]} 16. h4 {[%clk 0:02:40.8]} 16... h5
{[%clk 0:02:41.6]} 17. Qf3 {[%clk 0:02:37.3]} 17... Nd7 {[%clk 0:02:40.9]} 18.
Rad1 {[%clk 0:02:35.7]} 18... Ne5 {[%clk 0:02:40.8]} 19. Qg3 {[%clk 0:02:36]}
19... Nxc4 {[%clk 0:02:40.1]} 20. Qxc7 {[%clk 0:02:36]} 1-0

[Event "Late-Titled-Tuesday-Blitz-September-05-2023"]
[Site "Chess.com"]
[Date "2023.09.05"]
[Round "7"]
[White "DeTimmerman"]
[Black "venturov"]
[Result "1-0"]
[WhiteElo "2680"]
[BlackElo "2460"]
[TimeControl "180+1"]
[EndTime "15:12:23 PDT"]
[Termination "DeTimmerman won by resignation"]

1. b4 {[%clk 0:03:00]} 1... e5 {[%clk 0:02:57]} 2. Bb2 {[%clk 0:02:59.1]} 2...
d6 {[%clk 0:02:55.8]} 3. b5 {[%clk 0:02:58.6]} 3... g6 {[%clk 0:02:55.9]} 4. c4
{[%clk 0:02:56.7]} 4... Bg7 {[%clk 0:02:56.4]} 5. a4 {[%clk 0:02:55.6]} 5... f5
{[%clk 0:02:56.8]} 6. e3 {[%clk 0:02:51.7]} 6... Nf6 {[%clk 0:02:56.9]} 7. Nf3
{[%clk 0:02:47.2]} 7... Nbd7 {[%clk 0:02:56.6]} 8. Be2 {[%clk 0:02:48]} 8... e4
{[%clk 0:02:56.8]} 9. Nd4 {[%clk 0:02:48.3]} 9... Ne5 {[%clk 0:02:57.4]} 10. O-O
{[%clk 0:02:49]} 10... O-O {[%clk 0:02:56.7]} 11. f4 {[%clk 0:02:49.4]} 11...
exf3 {[%clk 0:02:56.5]} 12. Nxf3 {[%clk 0:02:50.3]} 12... Qe7 {[%clk 0:02:55.5]}
13. Nxe5 {[%clk 0:02:50]} 13... dxe5 {[%clk 0:02:55.5]} 14. Ba3 {[%clk
0:02:50.9]} 14... Qe6 {[%clk 0:02:52.2]} 15. Bxf8 {[%clk 0:02:51.8]} 15... Bxf8
{[%clk 0:02:52.6]} 16. Nc3 {[%clk 0:02:52.5]} 16... e4 {[%clk 0:02:51.7]} 17.
Qc2 {[%clk 0:02:40.8]} 17... Bd7 {[%clk 0:02:51.5]} 18. Nd5 {[%clk 0:02:41.5]}
18... Re8 {[%clk 0:02:49.3]} 19. Nxc7 {[%clk 0:02:41.2]} 19... Qe5 {[%clk
0:02:49.2]} 20. Nxe8 {[%clk 0:02:41.6]} 20... Bxe8 {[%clk 0:02:46.3]} 21. Qc3
{[%clk 0:02:38.2]} 21... Qe6 {[%clk 0:02:44.9]} 22. c5 {[%clk 0:02:38.4]} 22...
Nd7 {[%clk 0:02:43.4]} 23. Bc4 {[%clk 0:02:38.5]} 1-0

[Event "Late-Titled-Tuesday-Blitz-September-05-2023"]
[Site "Chess.com"]
[Date "2023.09.05"]
[Round "7"]
[White "YEIKO2017"]
[Black "Doudou2015"]
[Result "1-0"]
[WhiteElo "2427"]
[BlackElo "2201"]
[TimeControl "180+1"]
[EndTime "15:12:35 PDT"]
[Termination "YEIKO2017 won by resignation"]

1. e4 {[%clk 0:03:00.9]} 1... c5 {[%clk 0:02:59.6]} 2. Nf3 {[%clk 0:03:00.3]}
2... Nc6 {[%clk 0:02:59.7]} 3. Bb5 {[%clk 0:02:57.6]} 3... e5 {[%clk 0:02:56]}
4. c3 {[%clk 0:02:55.3]} 4... d6 {[%clk 0:02:49.1]} 5. d4 {[%clk 0:02:54.3]}
5... exd4 {[%clk 0:02:40.5]} 6. cxd4 {[%clk 0:02:55.2]} 6... Bd7 {[%clk
0:02:25.2]} 7. Nc3 {[%clk 0:02:48.8]} 7... Nxd4 {[%clk 0:02:22.3]} 8. Nxd4
{[%clk 0:02:46.7]} 8... cxd4 {[%clk 0:02:23.2]} 9. Bxd7+ {[%clk 0:02:44.4]} 9...
Qxd7 {[%clk 0:02:23.8]} 10. Qxd4 {[%clk 0:02:45]} 10... Nf6 {[%clk 0:02:23.3]}
11. O-O {[%clk 0:02:44.8]} 11... Be7 {[%clk 0:02:24.1]} 12. Bg5 {[%clk
0:02:42.7]} 12... Ng4 {[%clk 0:02:21]} 13. Qxg7 {[%clk 0:02:39.7]} 13... O-O-O
{[%clk 0:02:16]} 14. Bxe7 {[%clk 0:02:34.7]} 14... Qxe7 {[%clk 0:02:16.9]} 15.
Qxg4+ {[%clk 0:02:34]} 1-0